[Event "Snabb-SM för veteraner, 65+ 2019"]
[Site "Schackcentrum, Vegagatan 20, Gothenburg, Sweden"]
[Date "2019.10.05"]
[Round "4.2"]
[White "Green, Per"]
[Black "Wahlstrom, Lennart"]
[Result "1/2-1/2"]
[TimeControl "15 minutes + 10 seconds per move from move one"]
[WhiteFideId "1703811"]
[BlackFideId "1706829"]
[WhiteElo "1923"]
[BlackElo "2109"]

1. Nf3 {[%clk 00:15:19]} {[%emt 00:00:13]} d5 {[%clk 00:15:17]} {[%emt
00:00:04]} 2. c4 {[%clk 00:15:26]} {[%emt 00:00:03]} e6 {[%clk 00:15:25]}
{[%emt 00:00:01]} 3. g3 {[%clk 00:15:32]} {[%emt 00:00:04]} c5 {[%clk
00:15:33]} {[%emt 00:00:02]} 4. cxd5 {[%clk 00:15:32]} {[%emt 00:00:10]} exd5
{[%clk 00:15:42]} {[%emt 00:00:01]} 5. d4 {[%clk 00:15:36]} {[%emt 00:00:06]}
Nc6 {[%clk 00:15:50]} {[%emt 00:00:01]} 6. Bg2 {[%clk 00:15:43]} {[%emt
00:00:04]} Nf6 {[%clk 00:15:57]} {[%emt 00:00:02]} 7. O-O {[%clk 00:15:44]}
{[%emt 00:00:09]} Be7 {[%clk 00:16:04]} {[%emt 00:00:04]} 8. dxc5 {[%clk
00:15:32]} {[%emt 00:00:22]} Bxc5 {[%clk 00:16:11]} {[%emt 00:00:02]} 9. Qc2
{[%clk 00:15:40]} {[%emt 00:00:02]} Be7 {[%clk 00:15:15]} {[%emt 00:01:05]} 10.
Nc3 {[%clk 00:15:42]} {[%emt 00:00:08]} O-O {[%clk 00:14:35]} {[%emt 00:00:51]}
11. Rd1 {[%clk 00:15:33]} {[%emt 00:00:19]} Be6 {[%clk 00:13:01]} {[%emt
00:01:43]} 12. a3 {[%clk 00:14:52]} {[%emt 00:00:51]} Rc8 {[%clk 00:12:11]}
{[%emt 00:01:00]} 13. Qa4 {[%clk 00:11:58]} {[%emt 00:03:05]} Qa5 {[%clk
00:09:47]} {[%emt 00:02:34]} 14. Nd4 {[%clk 00:11:08]} {[%emt 00:00:59]} Qxa4
{[%clk 00:09:33]} {[%emt 00:00:23]} 15. Nxa4 {[%clk 00:11:16]} {[%emt
00:00:02]} Nxd4 {[%clk 00:08:48]} {[%emt 00:00:56]} 16. Rxd4 {[%clk 00:11:25]}
{[%emt 00:00:02]} Rc2 {[%clk 00:08:36]} {[%emt 00:00:22]} 17. Bf3 {[%clk
00:10:17]} {[%emt 00:01:18]} Rfc8 {[%clk 00:07:13]} {[%emt 00:01:33]} 18. Bg5
{[%clk 00:09:41]} {[%emt 00:00:46]} b5 {[%clk 00:06:54]} {[%emt 00:00:29]} 19.
Nc3 {[%clk 00:09:13]} {[%emt 00:00:38]} Rxb2 {[%clk 00:06:57]} {[%emt
00:00:06]} 20. Nd1 {[%clk 00:09:12]} {[%emt 00:00:11]} Rb3 {[%clk 00:06:19]}
{[%emt 00:00:48]} 21. Ne3 {[%clk 00:08:24]} {[%emt 00:00:57]} Bc5 {[%clk
00:05:29]} {[%emt 00:01:01]} 22. Rdd1 {[%clk 00:07:33]} {[%emt 00:01:00]} d4
{[%clk 00:04:36]} {[%emt 00:01:02]} 23. Nc2 {[%clk 00:07:17]} {[%emt 00:00:27]}
d3 {[%clk 00:03:28]} {[%emt 00:01:19]} 24. Ne3 {[%clk 00:05:41]} {[%emt
00:01:45]} dxe2 {[%clk 00:03:14]} {[%emt 00:00:24]} 25. Bxe2 {[%clk 00:05:50]}
{[%emt 00:00:02]} Ne4 {[%clk 00:02:50]} {[%emt 00:00:33]} 26. Bf4 {[%clk
00:04:00]} {[%emt 00:02:00]} g5 {[%clk 00:01:39]} {[%emt 00:01:21]} 27. Be5
{[%clk 00:03:35]} {[%emt 00:00:35]} Bxe3 {[%clk 00:01:16]} {[%emt 00:00:33]} 28.
fxe3 {[%clk 00:03:44]} Rxe3 {[%clk 00:01:24]} {[%emt 00:00:02]} 29. Bxb5 {[%clk
00:03:30]} {[%emt 00:00:25]} f6 {[%clk 00:01:24]} {[%emt 00:00:09]} 30. Bd4
{[%clk 00:03:20]} {[%emt 00:00:21]} Rb3 {[%clk 00:01:30]} {[%emt 00:00:03]} 31.
a4 {[%clk 00:03:24]} {[%emt 00:00:07]} Kg7 {[%clk 00:01:13]} {[%emt 00:00:27]}
32. Bxa7 {[%clk 00:03:20]} {[%emt 00:00:15]} Bg4 {[%clk 00:01:07]} {[%emt
00:00:15]} 33. Rd4 {[%clk 00:03:15]} {[%emt 00:00:15]} Nf2 {[%clk 00:01:04]}
{[%emt 00:00:13]} 34. Bd7 {[%clk 00:03:14]} {[%emt 00:00:11]} Nh3+ {[%clk
00:01:10]} {[%emt 00:00:03]} 35. Kf1 {[%clk 00:03:18]} {[%emt 00:00:06]} Bxd7
{[%clk 00:00:58]} {[%emt 00:00:23]} 36. Rxd7+ {[%clk 00:03:27]} Kg6 {[%clk
00:01:07]} {[%emt 00:00:02]} 37. Rd2 {[%clk 00:03:09]} {[%emt 00:00:28]} Rbc3
{[%clk 00:01:06]} {[%emt 00:00:11]} 38. Kg2 {[%clk 00:03:12]} {[%emt 00:00:06]}
g4 {[%clk 00:01:14]} {[%emt 00:00:03]} 39. a5 {[%clk 00:03:09]} {[%emt
00:00:13]} Ng5 {[%clk 00:01:21]} {[%emt 00:00:03]} 40. Rf1 {[%clk 00:02:49]}
{[%emt 00:00:29]} Nf3 {[%clk 00:01:18]} {[%emt 00:00:13]} 41. Re2 {[%clk
00:02:54]} {[%emt 00:00:06]} Ra3 {[%clk 00:01:15]} {[%emt 00:00:13]} 42. Bb6
{[%clk 00:03:02]} {[%emt 00:00:03]} h5 {[%clk 00:01:19]} {[%emt 00:00:05]} 43.
h3 {[%clk 00:03:11]} Rcc3 {[%clk 00:01:07]} {[%emt 00:00:23]} 44. hxg4 {[%clk
00:03:10]} {[%emt 00:00:11]} hxg4 {[%clk 00:01:16]} {[%emt 00:00:01]} 45. Rd1
{[%clk 00:02:45]} {[%emt 00:00:36]} Ne5 {[%clk 00:01:19]} {[%emt 00:00:07]} 46.
Bf2 {[%clk 00:02:45]} {[%emt 00:00:10]} Rcb3 {[%clk 00:01:14]} {[%emt
00:00:15]} 47. Rd6 {[%clk 00:02:48]} {[%emt 00:00:07]} Rxa5 {[%clk 00:01:16]}
{[%emt 00:00:08]} 48. Bd4 {[%clk 00:02:40]} {[%emt 00:00:18]} Kf5 {[%clk
00:01:00]} {[%emt 00:00:26]} 49. Bxe5 {[%clk 00:02:46]} {[%emt 00:00:04]} Rxe5
{[%clk 00:01:06]} {[%emt 00:00:04]} 50. Rf2+ {[%clk 00:02:54]} {[%emt
00:00:03]} Ke4 {[%clk 00:01:15]} 51. Rdxf6 {[%clk 00:03:01]} {[%emt 00:00:02]}
Re3 {[%clk 00:01:16]} {[%emt 00:00:09]} 52. R6f4+ {[%clk 00:03:08]} {[%emt
00:00:04]} Kd5 {[%clk 00:01:25]} 53. Rxg4 {[%clk 00:03:16]} {[%emt 00:00:04]}
Re2 {[%clk 00:01:31]} {[%emt 00:00:03]} 54. Rgf4 {[%clk 00:03:24]} {[%emt
00:00:02]} Rxf2+ {[%clk 00:01:39]} {[%emt 00:00:02]} 55. Rxf2 {[%clk 00:03:33]}
Ke6 {[%clk 00:01:48]} {[%emt 00:00:02]} 56. g4 {[%clk 00:03:41]} {[%emt
00:00:02]} Re3 {[%clk 00:01:55]} {[%emt 00:00:03]} 57. g5 {[%clk 00:03:37]}
{[%emt 00:00:13]} Ra3 {[%clk 00:02:00]} {[%emt 00:00:06]} 58. g6 {[%clk
00:03:00]} {[%emt 00:00:47]} Ra5 {[%clk 00:02:01]} {[%emt 00:00:08]} 59. Kh3
{[%clk 00:02:55]} {[%emt 00:00:15]} Rg5 {[%clk 00:02:07]} {[%emt 00:00:04]} 60.
Rg2 {[%clk 00:03:02]} {[%emt 00:00:03]} Rxg2 {[%clk 00:02:14]} {[%emt
00:00:03]} 61. Kxg2 {[%emt 00:00:01]} Kf6 {[%emt 00:00:01]} 1/2-1/2

[Event "Snabb-SM för veteraner, 65+ 2019"]
[Site "Schackcentrum, Vegagatan 20, Gothenburg, Sweden"]
[Date "2019.10.05"]
[Round "4.3"]
[White "Olsson, Torgny"]
[Black "Dolata, Henryk"]
[Result "0-1"]
[TimeControl "15 minutes + 10 seconds per move from move one"]
[WhiteFideId "1717340"]
[BlackFideId "1709046"]
[WhiteElo "1716"]
[BlackElo "2064"]

1. d4 {[%clk 00:15:14]} {[%emt 00:00:05]} e6 {[%clk 00:15:19]} {[%emt
00:00:02]} 2. Nf3 {[%clk 00:15:10]} {[%emt 00:00:14]} Nf6 {[%clk 00:15:26]}
{[%emt 00:00:03]} 3. Bf4 {[%clk 00:15:17]} {[%emt 00:00:03]} d5 {[%clk
00:15:29]} {[%emt 00:00:07]} 4. e3 {[%clk 00:15:25]} {[%emt 00:00:02]} Be7
{[%clk 00:15:35]} {[%emt 00:00:04]} 5. c3 {[%clk 00:15:24]} {[%emt 00:00:11]}
O-O {[%clk 00:15:32]} {[%emt 00:00:13]} 6. Bd3 {[%clk 00:15:14]} {[%emt
00:00:20]} Nbd7 {[%clk 00:15:38]} {[%emt 00:00:04]} 7. Nbd2 {[%clk 00:14:44]}
{[%emt 00:00:40]} b6 {[%clk 00:15:43]} {[%emt 00:00:06]} 8. Ne5 {[%clk
00:14:31]} {[%emt 00:00:22]} Bb7 {[%clk 00:15:47]} {[%emt 00:00:06]} 9. Qf3
{[%clk 00:13:54]} {[%emt 00:00:47]} Nxe5 {[%clk 00:14:44]} {[%emt 00:01:13]} 10.
dxe5 {[%clk 00:14:01]} {[%emt 00:00:03]} Nd7 {[%clk 00:14:51]} {[%emt
00:00:03]} 11. Qh5 {[%clk 00:10:23]} {[%emt 00:03:48]} g6 {[%clk 00:14:48]}
{[%emt 00:00:13]} 12. Qh3 {[%clk 00:10:15]} {[%emt 00:00:18]} Nc5 {[%clk
00:11:12]} {[%emt 00:03:46]} 13. Bc2 {[%clk 00:10:00]} {[%emt 00:00:25]} Ba6
{[%clk 00:11:04]} {[%emt 00:00:19]} 14. O-O-O {[%clk 00:07:03]} {[%emt
00:03:06]} Be2 {[%clk 00:09:23]} {[%emt 00:01:51]} 15. Rde1 {[%clk 00:06:21]}
{[%emt 00:00:52]} Bd3 {[%clk 00:09:24]} {[%emt 00:00:08]} 16. Nf3 {[%clk
00:05:47]} {[%emt 00:00:45]} b5 {[%clk 00:08:09]} {[%emt 00:01:25]} 17. Qh6
{[%clk 00:04:42]} {[%emt 00:01:15]} Re8 {[%clk 00:07:30]} {[%emt 00:00:49]} 18.
Ng5 {[%clk 00:04:47]} {[%emt 00:00:05]} Bxg5 {[%clk 00:07:03]} {[%emt
00:00:37]} 19. Bxg5 {[%clk 00:04:56]} {[%emt 00:00:01]} f6 {[%clk 00:07:12]}
{[%emt 00:00:01]} 20. Bxf6 {[%clk 00:03:48]} {[%emt 00:01:18]} Qd7 {[%clk
00:07:22]} {[%emt 00:00:01]} 21. f3 {[%clk 00:03:34]} {[%emt 00:00:23]} Bxc2
{[%clk 00:07:01]} {[%emt 00:00:31]} 22. Kxc2 {[%clk 00:03:43]} Qf7 {[%clk
00:07:04]} {[%emt 00:00:07]} 23. h4 {[%clk 00:03:42]} {[%emt 00:00:11]} Nd7
{[%clk 00:03:21]} {[%emt 00:03:52]} 24. h5 {[%clk 00:02:19]} {[%emt 00:01:32]}
Nxf6 {[%clk 00:03:28]} {[%emt 00:00:04]} 25. exf6 {[%clk 00:02:28]} {[%emt
00:00:01]} Qxf6 {[%clk 00:03:36]} {[%emt 00:00:01]} 26. hxg6 {[%clk 00:02:35]}
{[%emt 00:00:03]} Qxg6+ {[%clk 00:03:39]} {[%emt 00:00:07]} 27. Qxg6+ {[%clk
00:02:43]} {[%emt 00:00:02]} hxg6 {[%clk 00:03:48]} 28. Rh2 {[%clk 00:02:37]}
{[%emt 00:00:14]} Kg7 {[%clk 00:03:46]} {[%emt 00:00:14]} 29. Reh1 {[%clk
00:02:38]} {[%emt 00:00:09]} Kf6 {[%clk 00:03:02]} {[%emt 00:00:54]} 30. Kd3
{[%clk 00:02:31]} {[%emt 00:00:17]} c5 {[%clk 00:03:09]} {[%emt 00:00:04]} 31.
e4 {[%clk 00:02:27]} {[%emt 00:00:14]} Red8 {[%clk 00:02:50]} {[%emt 00:00:29]}
32. g4 {[%clk 00:01:56]} {[%emt 00:00:41]} Ke5 {[%clk 00:02:38]} {[%emt
00:00:22]} 33. exd5 {[%clk 00:01:54]} {[%emt 00:00:12]} exd5 {[%clk 00:02:43]}
{[%emt 00:00:05]} 34. Ke3 {[%clk 00:01:59]} {[%emt 00:00:04]} d4+ {[%clk
00:02:23]} {[%emt 00:00:31]} 35. cxd4+ {[%clk 00:02:02]} {[%emt 00:00:06]} Rxd4
{[%clk 00:02:31]} {[%emt 00:00:01]} 36. Rh6 {[%clk 00:01:17]} {[%emt 00:00:55]}
Kf6 {[%clk 00:02:03]} {[%emt 00:00:39]} 37. R1h2 {[%clk 00:01:11]} {[%emt
00:00:15]} Re8+ {[%clk 00:02:08]} {[%emt 00:00:04]} 38. Kf2 {[%clk 00:01:19]}
{[%emt 00:00:02]} Kg5 {[%clk 00:01:13]} {[%emt 00:01:05]} 39. Rh7 {[%clk
00:01:23]} {[%emt 00:00:06]} a5 {[%clk 00:01:14]} {[%emt 00:00:10]} 40. Kg3
{[%clk 00:01:24]} {[%emt 00:00:09]} Rf8 {[%clk 00:01:22]} {[%emt 00:00:03]} 41.
Rc7 {[%clk 00:01:10]} {[%emt 00:00:23]} Rc4 {[%clk 00:01:23]} {[%emt 00:00:08]}
42. Rd7 {[%clk 00:01:07]} {[%emt 00:00:14]} a4 {[%clk 00:01:09]} {[%emt
00:00:24]} 43. Rd5+ {[%clk 00:01:11]} {[%emt 00:00:05]} Kf6 {[%clk 00:01:19]}
{[%emt 00:00:01]} 44. Re2 {[%clk 00:00:58]} {[%emt 00:00:23]} b4 {[%clk
00:01:13]} {[%emt 00:00:16]} 45. g5+ {[%clk 00:00:58]} {[%emt 00:00:10]} Kg7
{[%clk 00:01:20]} {[%emt 00:00:03]} 46. Rd7+ {[%clk 00:01:05]} {[%emt
00:00:03]} Rf7 {[%clk 00:01:28]} {[%emt 00:00:02]} 47. Rxf7+ {[%clk 00:00:50]}
{[%emt 00:00:25]} Kxf7 {[%clk 00:01:37]} {[%emt 00:00:01]} 48. f4 {[%clk
00:00:53]} {[%emt 00:00:07]} a3 {[%clk 00:01:10]} {[%emt 00:00:38]} 49. bxa3
{[%clk 00:00:46]} {[%emt 00:00:16]} Rc3+ {[%clk 00:01:17]} {[%emt 00:00:03]} 50.
Kg4 {[%clk 00:00:49]} {[%emt 00:00:07]} Rxa3 {[%clk 00:01:27]} {[%emt
00:00:01]} 51. Kh4 {[%clk 00:00:31]} {[%emt 00:00:28]} c4 {[%clk 00:01:32]}
{[%emt 00:00:05]} 52. Rb2 {[%clk 00:00:23]} {[%emt 00:00:17]} Ra4 {[%clk
00:01:26]} 0-1

[Event "Snabb-SM för veteraner, 65+ 2019"]
[Site "Schackcentrum, Vegagatan 20, Gothenburg, Sweden"]
[Date "2019.10.05"]
[Round "4.4"]
[White "Fransson, Lennart"]
[Black "Bohlin, Jan"]
[Result "1-0"]
[TimeControl "15 minutes + 10 seconds per move from move one"]
[WhiteFideId "1706756"]
[BlackFideId "1758616"]
[WhiteElo "1983"]
[BlackElo "1794"]

1. c4 {[%clk 00:15:17]} {[%emt 00:00:02]} Nf6 {[%clk 00:15:16]} {[%emt
00:00:05]} 2. g3 {[%clk 00:15:25]} {[%emt 00:00:02]} e6 {[%clk 00:15:16]}
{[%emt 00:00:09]} 3. Bg2 {[%clk 00:15:32]} {[%emt 00:00:03]} d5 {[%clk
00:15:23]} {[%emt 00:00:05]} 4. Nf3 {[%clk 00:15:36]} {[%emt 00:00:05]} Be7
{[%clk 00:15:29]} {[%emt 00:00:04]} 5. O-O {[%clk 00:15:37]} {[%emt 00:00:08]}
O-O {[%clk 00:15:37]} {[%emt 00:00:02]} 6. Qc2 {[%clk 00:15:33]} {[%emt
00:00:14]} Nbd7 {[%clk 00:14:33]} {[%emt 00:01:15]} 7. b3 {[%clk 00:15:32]}
{[%emt 00:00:10]} b6 {[%clk 00:14:14]} {[%emt 00:00:29]} 8. Bb2 {[%clk
00:15:36]} {[%emt 00:00:05]} Bb7 {[%clk 00:14:19]} {[%emt 00:00:06]} 9. d3
{[%clk 00:15:28]} {[%emt 00:00:17]} c5 {[%clk 00:14:16]} {[%emt 00:00:14]} 10.
e3 {[%clk 00:15:26]} {[%emt 00:00:12]} Qc7 {[%clk 00:14:07]} {[%emt 00:00:20]}
11. Nc3 {[%clk 00:15:20]} {[%emt 00:00:15]} a6 {[%clk 00:14:14]} {[%emt
00:00:04]} 12. cxd5 {[%clk 00:15:00]} {[%emt 00:00:29]} Nxd5 {[%clk 00:14:20]}
{[%emt 00:00:04]} 13. Nxd5 {[%clk 00:15:02]} {[%emt 00:00:08]} Bxd5 {[%clk
00:13:54]} {[%emt 00:00:37]} 14. b4 {[%clk 00:13:57]} {[%emt 00:01:15]} Rac8
{[%clk 00:13:52]} {[%emt 00:00:12]} 15. e4 {[%clk 00:13:17]} {[%emt 00:00:50]}
Bc6 {[%clk 00:13:29]} {[%emt 00:00:34]} 16. bxc5 {[%clk 00:13:05]} {[%emt
00:00:21]} Nxc5 {[%clk 00:13:25]} {[%emt 00:00:15]} 17. Rac1 {[%clk 00:12:18]}
{[%emt 00:00:56]} Qb7 {[%clk 00:13:17]} {[%emt 00:00:18]} 18. Ne5 {[%clk
00:11:52]} {[%emt 00:00:35]} Ba4 {[%clk 00:12:58]} {[%emt 00:00:31]} 19. Qe2
{[%clk 00:11:35]} {[%emt 00:00:26]} Bf6 {[%clk 00:12:06]} {[%emt 00:01:03]} 20.
d4 {[%clk 00:10:40]} {[%emt 00:01:05]} Nd7 {[%clk 00:12:06]} {[%emt 00:00:10]}
21. Nd3 {[%clk 00:09:29]} {[%emt 00:01:20]} Be7 {[%clk 00:11:03]} {[%emt
00:01:14]} 22. e5 {[%clk 00:08:55]} {[%emt 00:00:44]} Bc6 {[%clk 00:11:04]}
{[%emt 00:00:09]} 23. f4 {[%clk 00:07:35]} {[%emt 00:01:30]} Bxg2 {[%clk
00:10:32]} {[%emt 00:00:42]} 24. Qxg2 {[%clk 00:07:42]} {[%emt 00:00:02]} Qxg2+
{[%clk 00:10:40]} {[%emt 00:00:03]} 25. Kxg2 {[%clk 00:07:50]} {[%emt
00:00:02]} Nb8 {[%clk 00:10:31]} {[%emt 00:00:20]} 26. Kf3 {[%clk 00:07:34]}
{[%emt 00:00:26]} Nc6 {[%clk 00:10:00]} {[%emt 00:00:41]} 27. Rf2 {[%clk
00:07:15]} {[%emt 00:00:28]} Rfd8 {[%clk 00:08:55]} {[%emt 00:01:16]} 28. Ke4
{[%clk 00:07:00]} {[%emt 00:00:24]} Na7 {[%clk 00:07:25]} {[%emt 00:01:41]} 29.
Rfc2 {[%clk 00:06:56]} {[%emt 00:00:13]} Rxc2 {[%clk 00:07:34]} {[%emt
00:00:02]} 30. Rxc2 {[%clk 00:07:04]} {[%emt 00:00:01]} Rc8 {[%clk 00:07:28]}
{[%emt 00:00:16]} 31. Rxc8+ {[%clk 00:07:03]} {[%emt 00:00:12]} Nxc8 32. d5
{[%emt 00:00:08]} exd5+ {[%clk 00:07:28]} {[%emt 00:00:02]} 33. Kxd5 {[%clk
00:07:14]} {[%emt 00:00:09]} Na7 {[%clk 00:07:38]} {[%emt 00:00:10]} 34. a4
{[%clk 00:06:12]} {[%emt 00:01:11]} Kf8 {[%clk 00:07:29]} {[%emt 00:00:19]} 35.
Bd4 {[%clk 00:06:15]} {[%emt 00:00:07]} Bd8 {[%clk 00:06:55]} {[%emt 00:00:44]}
36. Nb4 {[%clk 00:05:12]} {[%emt 00:01:13]} Be7 {[%clk 00:06:26]} {[%emt
00:00:39]} 37. Nxa6 {[%clk 00:04:38]} {[%emt 00:00:44]} Bd8 {[%clk 00:05:21]}
{[%emt 00:01:14]} 38. Nb4 {[%clk 00:04:35]} {[%emt 00:00:14]} Nc8 {[%clk
00:05:16]} {[%emt 00:00:14]} 39. Kc6 {[%clk 00:04:24]} {[%emt 00:00:21]} Ke7
{[%clk 00:05:19]} {[%emt 00:00:07]} 40. f5 {[%clk 00:04:12]} {[%emt 00:00:21]}
h5 {[%clk 00:04:59]} {[%emt 00:00:31]} 41. Nd5+ {[%clk 00:04:18]} {[%emt
00:00:04]} Ke8 {[%clk 00:04:29]} {[%emt 00:00:40]} 42. f6 {[%clk 00:03:46]}
{[%emt 00:00:42]} gxf6 {[%clk 00:04:33]} {[%emt 00:00:06]} 43. exf6 {[%clk
00:03:54]} {[%emt 00:00:02]} Na7+ {[%clk 00:03:51]} {[%emt 00:00:52]} 44. Kb7
{[%clk 00:03:59]} {[%emt 00:00:05]} b5 {[%clk 00:03:28]} {[%emt 00:00:34]} 45.
Bxa7 {[%clk 00:03:41]} {[%emt 00:00:28]} bxa4 {[%clk 00:03:35]} {[%emt
00:00:03]} 46. Kc6 {[%clk 00:02:33]} {[%emt 00:01:18]} a3 {[%clk 00:03:16]}
{[%emt 00:00:30]} 47. Bd4 {[%clk 00:02:28]} {[%emt 00:00:13]} Ba5 {[%clk
00:03:00]} {[%emt 00:00:26]} 48. Kd6 {[%clk 00:02:35]} {[%emt 00:00:03]} Bd2
{[%clk 00:02:56]} {[%emt 00:00:15]} 49. Ke5 {[%clk 00:02:28]} {[%emt 00:00:17]}
Kd7 {[%clk 00:02:49]} {[%emt 00:00:17]} 50. Nc3 {[%clk 00:01:39]} {[%emt
00:00:58]} Be1 {[%clk 00:02:08]} {[%emt 00:00:50]} 51. Kf5 {[%clk 00:01:36]}
{[%emt 00:00:13]} Bd2 {[%clk 00:01:58]} {[%emt 00:00:20]} 52. h3 {[%clk
00:01:07]} {[%emt 00:00:39]} Be1 {[%clk 00:01:16]} {[%emt 00:00:53]} 53. g4
{[%clk 00:01:10]} {[%emt 00:00:07]} hxg4 {[%clk 00:01:24]} {[%emt 00:00:02]} 54.
hxg4 {[%clk 00:01:17]} {[%emt 00:00:01]} Kc6 {[%clk 00:01:12]} {[%emt
00:00:23]} 55. g5 {[%clk 00:01:19]} {[%emt 00:00:08]} 1-0